bitfinex-derivatives/quotes_SOLF0:USTF0_20250424
["timestamp","ask_amount","ask_price","bid_price","bid_amount"]
[1745526213469,16.11793214,151.58,151.56,6.5952]
[1745526213676,9.52333214,151.58,151.55,23.66]
[1745526213975,9.52333214,151.6,151.58,6.5943]
[1745526214177,9.52333214,151.63,151.59,6.69792175]
[1745526214372,16.11533214,151.64,151.61,6.593]
[1745526214570,9.52333214,151.65,151.6,9.52333214]
[1745526214773,9.52333214,151.65,151.61,6.69762684]
[1745526214973,9.52333214,151.65,151.61,9.52333214]
[1745526215571,6.5909,151.66,151.63,6.5919]
[1745526215875,9.52333214,151.68,151.64,6.69453041]
[1745526216070,9.52333214,151.68,151.65,13.28553041]
[1745526216275,9.52333214,151.68,151.65,6.591]
[1745526216889,9.52333214,151.68,151.66,6.68636335]
[1745526217075,9.52333214,151.68,151.67,1.64824184]
[1745526217678,6.5897,151.69,151.67,1.64824184]
[1745526217886,6.59,151.68,151.67,1.64824184]
[1745526218782,9.52333214,151.69,151.67,1.64824184]
[1745526219083,9.52333214,151.71,151.67,25.30824184]
[1745526219682,9.52333214,151.71,151.68,1.64824184]
[1745526219884,9.52333214,151.7,151.68,8.23814184]
[1745526220079,16.11213214,151.71,151.68,8.23814184]
[1745526220274,9.52333214,151.71,151.68,6.5899]
[1745526220478,6.5886,151.72,151.68,6.5899]
[1745526220679,9.52333214,151.71,151.69,6.5895]
[1745526220875,9.52333214,151.72,151.69,6.5895]
[1745526221075,23.64,151.77,151.7,6.5889]
[1745526221382,9.52333214,151.73,151.7,6.5889]
[1745526221584,9.52333214,151.73,151.69,16.11273214]
[1745526222282,6.5883,151.72,151.69,9.52333214]
[1745526222483,16.11163214,151.72,151.68,16.11313214]
[1745526222782,9.52333214,151.71,151.69,1.64782634]
[1745526223081,16.11243214,151.71,151.67,30.2503]
[1745526223684,16.11243214,151.71,151.68,1.64782634]
[1745526223880,6.5884,151.72,151.68,17.76095848]
[1745526224075,9.52333214,151.73,151.69,9.52333214]
[1745526225182,16.11083214,151.74,151.7,16.11223214]
[1745526225382,16.11083214,151.74,151.71,23.64]
[1745526225580,9.52333214,151.74,151.71,23.64]
[1745526225783,6.5879,151.73,151.71,23.64]
[1745526226686,16.11083214,151.74,151.71,23.64]
[1745526226880,9.52333214,151.74,151.71,23.64]
[1745526227883,16.11093214,151.74,151.71,23.64]
[1745526228383,16.11103214,151.74,151.71,30.2286]
[1745526228584,9.52333214,151.74,151.71,30.2286]
[1745526228884,9.52333214,151.75,151.71,23.64]
[1745526229486,9.52333214,151.75,151.71,33.16333214]
[1745526230084,9.52333214,151.76,151.73,6.5878]
[1745526230280,9.52333214,151.76,151.72,9.52333214]
[1745526230483,9.52333214,151.76,151.73,6.5877]
[1745526231289,16.10993214,151.76,151.73,6.5877]
[1745526231489,16.10993214,151.76,151.72,16.11143214]
[1745526231690,16.10993214,151.76,151.72,6.5881]
[1745526232488,9.52333214,151.75,151.72,6.5881]
[1745526232992,16.11043214,151.75,151.72,6.5881]
[1745526234994,16.11043214,151.75,151.73,6.5878]
[1745526237003,16.11043214,151.75,151.72,6.5881]
[1745526237396,9.52333214,151.74,151.71,23.64]
[1745526237596,9.52333214,151.75,151.71,23.64]
[1745526237896,9.52333214,151.75,151.71,33.16333214]
[1745526238295,9.52333214,151.76,151.72,9.52333214]
[1745526238691,9.52333214,151.76,151.73,6.5877]
[1745526238999,9.52333214,151.76,151.72,9.52333214]
[1745526239191,9.52333214,151.75,151.71,33.16333214]
[1745526239699,9.52333214,151.75,151.73,6.5876]
[1745526239995,16.10993214,151.76,151.73,6.5876]
[1745526240799,16.11043214,151.75,151.72,6.5881]
[1745526240997,16.11043214,151.75,151.71,33.16333214]
[1745526241999,16.11043214,151.75,151.73,6.5876]
[1745526242996,9.52333214,151.75,151.74,6.5874]
[1745526243196,16.10993214,151.76,151.74,6.5874]
[1745526243901,16.10993214,151.76,151.73,6.5877]
[1745526244297,6.5872,151.75,151.73,6.5877]
[1745526245698,9.52333214,151.74,151.71,23.64]
[1745526245898,9.52333214,151.73,151.71,23.64]
[1745526246794,16.11133214,151.73,151.71,23.64]
[1745526251004,9.52333214,151.73,151.71,23.64]
[1745526251297,9.52333214,151.75,151.71,33.16333214]
[1745526251497,16.11013214,151.76,151.72,9.52333214]
[1745526251703,6.5868,151.76,151.73,9.52333214]
[1745526252703,6.5868,151.76,151.73,16.11093214]
[1745526252904,16.10963214,151.77,151.73,16.11093214]
[1745526253105,16.10963214,151.77,151.73,9.52333214]
[1745526253298,16.10963214,151.77,151.74,6.5874]
[1745526255603,16.10913214,151.78,151.75,6.5869]
[1745526256007,16.10913214,151.78,151.75,30.2069]
[1745526256609,23.62,151.81,151.75,23.62]
[1745526256610,16.10943214,151.77,151.75,23.62]
[1745526256808,9.52333214,151.76,151.75,23.62]
[1745526258006,16.10983214,151.76,151.75,23.62]
[1745526259008,16.10983214,151.76,151.75,25.26736384]
[1745526259309,16.10983214,151.76,151.75,23.62]
[1745526260008,16.10983214,151.76,151.75,25.26735407]
[1745526261909,16.10983214,151.76,151.75,1.64735407]
[1745526263010,6.5878,151.73,151.72,23.62]
[1745526263308,6.5878,151.73,151.72,30.30019051]
[1745526263811,6.5878,151.73,151.72,31.94774258]
[1745526265509,16.11093214,151.74,151.72,31.94774258]
[1745526265710,16.11093214,151.74,151.73,6.68019051]
[1745526266313,9.52333214,151.74,151.73,6.68890732]
[1745526267113,9.52333214,151.76,151.73,6.68890732]
[1745526267414,9.52333214,151.77,151.74,6.68890732]
[1745526267617,16.10973214,151.77,151.73,6.5876]
[1745526267816,9.52333214,151.77,151.74,6.69023444]
[1745526268114,6.5866,151.76,151.73,6.5876]
[1745526268414,6.5866,151.76,151.74,6.69147883]
[1745526268614,6.5866,151.76,151.73,6.5876]
[1745526268816,6.5866,151.76,151.74,6.69172279]
[1745526269016,6.5866,151.76,151.73,6.5876]
[1745526269206,6.587,151.75,151.74,6.69167429]
[1745526269515,9.52333214,151.77,151.74,6.69167429]
[1745526269717,9.52333214,151.77,151.73,6.5876]
[1745526269919,6.5867,151.76,151.74,6.69358807]
[1745526270211,6.5867,151.76,151.75,6.69360685]
[1745526270417,16.10923214,151.78,151.75,6.69360685]
[1745526270613,9.52333214,151.78,151.73,9.52333214]
[1745526270813,9.52333214,151.78,151.74,6.69291456]
[1745526271118,6.5864,151.77,151.75,6.69291456]
[1745526271317,6.5864,151.77,151.74,6.5872]
[1745526271508,6.5864,151.77,151.75,6.69460174]
[1745526271708,6.5864,151.77,151.74,6.5872]
[1745526271918,6.5864,151.77,151.75,6.69455078]
[1745526272119,6.5864,151.77,151.74,6.5872]
[1745526272319,6.5864,151.77,151.75,6.69529152]
[1745526272614,6.5864,151.77,151.74,6.5872]
[1745526272917,6.5864,151.77,151.75,6.69525813]
[1745526273120,6.5864,151.77,151.74,6.5872]
[1745526273320,6.5864,151.77,151.75,6.69603298]
[1745526273521,6.5864,151.77,151.76,6.69603298]
[1745526274021,6.5864,151.77,151.73,18.01083214]
[1745526274220,6.5864,151.77,151.74,6.69596707]
[1745526274521,6.5864,151.77,151.75,6.69596707]
[1745526274720,6.5864,151.77,151.76,6.69596707]
[1745526277521,16.10923214,151.78,151.76,6.69596707]
[1745526277725,16.10923214,151.78,151.74,6.5874]
[1745526277926,16.10923214,151.78,151.75,6.69481822]
[1745526278127,9.52333214,151.78,151.76,6.69481822]
[1745526278327,6.5861,151.77,151.74,6.5874]
[1745526278522,6.5861,151.77,151.75,6.69451682]
[1745526278725,6.5861,151.77,151.76,6.69451682]
[1745526279026,16.10923214,151.78,151.76,6.69451682]
[1745526279220,16.10923214,151.78,151.75,6.587]
[1745526279420,16.10923214,151.78,151.76,6.69336463]
[1745526279624,16.10923214,151.78,151.75,6.587]
[1745526279925,16.10923214,151.78,151.76,6.6930209]
[1745526280123,16.10923214,151.78,151.75,6.587]
[1745526280422,16.10923214,151.78,151.76,6.69279183]
[1745526280618,16.10923214,151.78,151.75,6.587]
[1745526280823,16.10923214,151.78,151.76,6.69263906]
[1745526281123,16.10923214,151.78,151.75,6.587]
[1745526281322,16.10923214,151.78,151.76,6.69246758]
[1745526281622,16.10923214,151.78,151.75,6.587]
[1745526281922,16.10923214,151.78,151.76,6.69222431]
[1745526282125,16.10923214,151.78,151.75,6.587]
[1745526282326,16.10923214,151.78,151.76,6.69199496]
[1745526282527,16.10923214,151.78,151.75,6.587]
[1745526282727,16.10943214,151.77,151.76,6.69197954]
[1745526284334,16.10943214,151.77,151.76,6.69210863]
[1745526284529,16.10943214,151.77,151.76,6.69159777]
[1745526285133,9.52333214,151.77,151.76,6.69159777]
[1745526285729,16.10943214,151.77,151.76,6.69159777]
[1745526286935,9.52333214,151.77,151.76,6.69159777]
[1745526287436,16.10923214,151.78,151.76,6.69159777]
[1745526287734,9.52333214,151.8,151.77,6.68826458]
[1745526287935,9.52333214,151.8,151.76,23.6]
[1745526287936,9.52333214,151.8,151.78,6.68643784]
[1745526288134,9.52333214,151.8,151.76,23.6]
[1745526289237,6.5853,151.79,151.76,30.1863]
[1745526290034,6.5853,151.79,151.77,6.68229689]
[1745526290336,16.10863214,151.79,151.78,6.68229689]
[1745526292839,16.10863214,151.79,151.76,30.1863]
[1745526293039,16.10863214,151.79,151.77,6.68076495]
[1745526293339,16.10863214,151.79,151.76,30.1863]
[1745526293536,16.10863214,151.79,151.77,6.68043751]
[1745526293736,16.10863214,151.79,151.76,30.1863]
[1745526293937,16.10863214,151.79,151.77,6.68041329]
[1745526294136,16.10863214,151.79,151.76,23.6]
[1745526294337,6.5857,151.78,151.77,6.68041075]
[1745526295439,6.5865,151.76,151.75,23.6]
[1745526295640,6.5865,151.76,151.75,30.28286513]
[1745526296142,6.5865,151.76,151.75,30.28281521]
[1745526297844,6.5865,151.76,151.75,30.28486976]
[1745526302048,6.5863,151.77,151.75,30.28486976]
[1745526302243,6.5863,151.77,151.76,6.68486976]
[1745526303045,6.5863,151.77,151.76,6.68351738]
[1745526303242,9.52333214,151.8,151.76,6.68351738]
[1745526303444,9.52333214,151.81,151.77,13.26941738]
[1745526303744,9.52333214,151.8,151.78,6.68351738]
[1745526303945,9.52333214,151.8,151.76,9.52333214]
[1745526304145,9.52333214,151.8,151.77,6.68065512]
[1745526304445,9.52333214,151.81,151.78,6.68065512]
[1745526304648,9.52333214,151.82,151.79,6.68065512]
[1745526304841,9.52333214,151.82,151.77,9.52333214]
[1745526305041,16.10743214,151.82,151.79,6.585]
[1745526306646,16.10743214,151.82,151.78,6.5855]
[1745526306845,16.10783214,151.81,151.79,6.67702956]
[1745526307045,9.52333214,151.8,151.76,9.52333214]
[1745526307245,9.52333214,151.8,151.77,13.26300006]
[1745526307449,9.52333214,151.8,151.78,6.67720006]
[1745526307746,9.52333214,151.8,151.77,6.5858]
[1745526308046,9.52333214,151.8,151.78,6.67735228]
[1745526308236,9.52333214,151.8,151.77,6.5858]
[1745526308439,9.52333214,151.8,151.78,6.67816501]
[1745526308642,9.52333214,151.8,151.77,6.5858]
[1745526308843,9.52333214,151.8,151.78,13.26355166]
[1745526309043,9.52333214,151.8,151.78,6.5856]
[1745526309849,16.10813214,151.8,151.77,6.586]
[1745526310150,16.10813214,151.8,151.78,6.6781842]
[1745526310345,9.52333214,151.8,151.77,6.586]
[1745526310546,9.52333214,151.8,151.78,13.26427188]
[1745526310747,16.10793214,151.81,151.78,6.5856]
[1745526311946,6.5848,151.8,151.77,6.5859]
[1745526312150,6.5848,151.8,151.78,6.67947181]
[1745526312346,6.5848,151.8,151.77,6.5859]
[1745526312548,6.5848,151.8,151.78,6.68006058]
[1745526312748,6.5848,151.8,151.77,6.5859]
[1745526312948,6.5848,151.8,151.78,6.6798563]
[1745526313150,6.5848,151.8,151.77,6.5859]
[1745526313350,6.5848,151.8,151.78,6.67986881]
[1745526313542,6.5848,151.8,151.77,6.5859]
[1745526313745,6.5848,151.8,151.78,6.68032051]
[1745526313945,16.10783214,151.81,151.78,6.5856]
[1745526314848,9.52333214,151.83,151.79,30.25687052]
[1745526315048,9.52333214,151.83,151.8,6.67618966]
[1745526315249,9.52333214,151.83,151.79,23.58]
[1745526315450,9.52333214,151.82,151.8,6.67568516]
[1745526315650,9.52333214,151.82,151.79,23.58]
[1745526315851,9.52333214,151.82,151.8,6.67449967]
[1745526316051,9.52333214,151.82,151.79,23.58]
[1745526316253,9.52333214,151.82,151.8,6.67433892]
[1745526316452,9.52333214,151.82,151.79,23.58]
[1745526316751,9.52333214,151.82,151.8,6.67359429]
[1745526316954,16.10753214,151.82,151.79,30.165]
[1745526317253,16.10753214,151.82,151.8,6.67406845]
[1745526317454,6.5844,151.81,151.79,23.58]
[1745526317654,16.10773214,151.81,151.8,6.67362714]
[1745526318953,16.10773214,151.81,151.79,23.58]
[1745526320654,6.5848,151.8,151.79,23.58]
[1745526320857,6.5848,151.8,151.79,30.2487905]
[1745526321155,16.10793214,151.81,151.79,30.2487905]
[1745526321356,9.52333214,151.81,151.79,23.58]
[1745526322157,6.5848,151.8,151.79,23.58]
[1745526322353,6.5848,151.8,151.79,6.66510367]
[1745526322557,9.52333214,151.8,151.73,25.5628]
[1745526322857,9.52333214,151.76,151.74,6.66851566]
[1745526323052,9.52333214,151.76,151.75,6.6680308]
[1745526323355,9.52333214,151.76,151.73,23.58]
[1745526323558,9.52333214,151.74,151.7,23.58]
[1745526323858,16.11163214,151.72,151.71,6.67136417]
[1745526324057,9.52333214,151.72,151.65,56.46504266]
[1745526324253,9.52333214,151.69,151.67,6.67732752]
[1745526324456,9.52333214,151.69,151.65,56.46504266]
[1745526324757,9.52333214,151.69,151.65,46.94171052]
[1745526324961,9.52333214,151.69,151.65,53.53301052]
[1745526325461,9.52333214,151.69,151.65,30.1713]
[1745526326162,9.52333214,151.69,151.66,6.5908]
[1745526326358,16.11273214,151.7,151.66,6.5908]
[1745526327963,6.5896,151.69,151.65,39.69443214]
[1745526328158,16.11293214,151.69,151.65,39.69443214]
[1745526328561,16.11293214,151.69,151.66,6.5908]
[1745526330259,6.5901,151.68,151.65,30.1712]
[1745526330463,16.11343214,151.68,151.65,30.1712]
[1745526330664,16.11343214,151.68,151.65,23.58]
[1745526332365,9.52333214,151.68,151.65,30.1711]
[1745526333869,9.52333214,151.68,151.66,6.5908]
[1745526334066,9.52333214,151.68,151.65,23.58]
[1745526334270,16.11253214,151.7,151.65,33.10333214]
[1745526334768,16.11253214,151.7,151.67,6.5904]
[1745526335271,16.11253214,151.7,151.66,6.5907]
[1745526337065,6.5892,151.7,151.66,6.5907]
[1745526337369,9.52333214,151.67,151.65,23.58]
[1745526339269,9.52333214,151.67,151.65,30.1713]
[1745526341267,9.52333214,151.67,151.65,6.5913]
[1745526341574,9.52333214,151.67,151.63,33.10333214]
[1745526341774,9.52333214,151.68,151.64,23.58]
[1745526341970,16.11363214,151.68,151.65,6.5912]
[1745526342169,9.52333214,151.69,151.64,33.10333214]
[1745526342876,16.11293214,151.69,151.66,6.5906]
[1745526343071,9.52333214,151.69,151.64,23.58]
[1745526343272,9.52333214,151.68,151.65,6.5911]
[1745526344377,16.11353214,151.68,151.65,6.5911]
[1745526345175,9.52333214,151.67,151.65,6.5911]
[1745526345577,9.52333214,151.67,151.64,30.1716]
[1745526346274,9.52333214,151.67,151.65,6.5913]
[1745526346474,16.11383214,151.67,151.64,23.58]
[1745526346875,16.11383214,151.67,151.64,30.1714]
[1745526347577,9.52333214,151.67,151.65,6.5913]
[1745526348775,16.11353214,151.68,151.65,6.5913]
[1745526350877,16.11353214,151.68,151.66,6.5909]
[1745526351276,9.52333214,151.7,151.65,9.52333214]
[1745526351476,9.52333214,151.7,151.67,6.5902]
[1745526351679,9.52333214,151.69,151.64,35.08513214]
[1745526352279,16.11313214,151.69,151.66,6.5906]
[1745526353680,9.52333214,151.69,151.67,6.5904]
[1745526354578,9.52333214,151.73,151.68,23.6]
[1745526354781,3.8891,151.75,151.68,23.6]
[1745526354782,9.52333214,151.75,151.7,9.52333214]
[1745526355078,16.11063214,151.75,151.71,6.5884]
[1745526355279,16.11063214,151.75,151.72,23.6]
[1745526356880,16.11063214,151.75,151.72,30.188]
[1745526359586,9.52333214,151.77,151.73,6.5878]
[1745526360085,16.10963214,151.77,151.74,6.5873]
[1745526361885,16.10963214,151.77,151.73,16.11103214]
[1745526362286,16.10963214,151.77,151.73,9.52333214]
[1745526363083,16.10993214,151.76,151.72,33.12333214]
[1745526364087,16.10993214,151.76,151.73,6.5878]
[1745526364681,9.52333214,151.76,151.72,33.12333214]
[1745526365390,6.5873,151.75,151.72,39.71133214]
[1745526366690,6.5874,151.74,151.72,30.188]
[1745526366991,9.52333214,151.75,151.73,6.5878]
[1745526367191,16.11013214,151.76,151.73,6.5878]
[1745526370494,9.52333214,151.76,151.74,6.5874]
[1745526370696,9.52333214,151.78,151.74,9.52333214]
[1745526371096,9.52333214,151.78,151.76,6.5863]
[1745526371295,9.52333214,151.78,151.76,30.1663]
[1745526372497,9.52333214,151.78,151.76,23.58]
[1745526374297,6.5861,151.77,151.76,23.58]
[1745526375402,16.10943214,151.77,151.76,23.58]
[1745526378000,6.5861,151.77,151.76,23.58]
[1745526378203,16.10913214,151.78,151.76,23.58]
[1745526378498,9.52333214,151.79,151.76,23.58]
[1745526378890,16.10883214,151.79,151.76,30.1663]
[1745526379703,6.5855,151.79,151.76,30.1663]
[1745526380201,6.5857,151.78,151.76,23.58]
[1745526380401,9.52333214,151.78,151.76,23.58]
[1745526380602,6.5861,151.77,151.76,23.58]
[1745526390011,16.10943214,151.77,151.76,23.58]
[1745526391611,9.52333214,151.77,151.72,9.52333214]
[1745526391808,13.17,151.8,151.72,9.52333214]
[1745526391809,9.52333214,151.75,151.72,23.56]
[1745526392912,16.11113214,151.73,151.72,23.56]
[1745526395511,6.5891,151.71,151.69,23.56]
[1745526401413,6.5891,151.7,151.69,23.56]
[1745526402116,16.11243214,151.7,151.69,23.56]
[1745526403013,6.5896,151.69,151.66,3.7519]
[1745526403218,16.11293214,151.69,151.68,23.56]
[1745526405719,6.5906,151.67,151.62,3.9703]
[1745526405922,9.52333214,151.66,151.63,23.56]
[1745526406621,9.52333214,151.66,151.63,30.1518]
[1745526406822,9.52333214,151.66,151.63,23.56]
[1745526407124,9.52333214,151.66,151.64,6.5917]
[1745526408725,16.11423214,151.66,151.64,6.5917]
[1745526408920,9.52333214,151.66,151.64,6.5917]
[1745526409120,16.11413214,151.67,151.64,6.5917]
[1745526411725,6.5909,151.66,151.64,6.5917]
[1745526411928,9.52333214,151.67,151.64,6.5917]
[1745526412229,16.11403214,151.67,151.64,6.5917]
[1745526412427,9.52333214,151.65,151.63,30.152]
[1745526412925,9.52333214,151.65,151.63,23.56]
[1745526413630,6.5917,151.64,151.63,23.56]
[1745526413829,9.52333214,151.65,151.63,23.56]
[1745526415031,9.52333214,151.65,151.63,30.1521]
[1745526419874,9.52333214,151.65,151.63,23.56]
[1745526421274,9.52333214,151.65,151.63,30.152]
[1745526421976,9.52333214,151.65,151.63,23.56]
[1745526423878,16.11463214,151.65,151.63,23.56]
[1745526424488,9.52333214,151.65,151.63,23.56]
[1745526425171,9.52333214,151.65,151.58,1.9142]
[1745526425371,9.52333214,151.62,151.59,23.56]
[1745526425677,6.5933,151.61,151.59,23.56]
[1745526426274,16.11613214,151.62,151.59,23.56]
[1745526426579,9.52333214,151.64,151.59,33.08333214]
[1745526428269,16.11513214,151.64,151.61,6.593]
[1745526428780,16.11513214,151.64,151.6,6.5931]
[1745526429374,16.11513214,151.64,151.59,33.08333214]
[1745526429771,16.11513214,151.64,151.6,6.5933]
[1745526429972,16.11513214,151.64,151.59,33.08333214]
[1745526431065,16.11513214,151.64,151.61,6.5928]
[1745526432346,9.52333214,151.64,151.62,6.5926]
[1745526433250,9.52333214,151.64,151.61,6.5929]
[1745526433846,16.11513214,151.64,151.61,6.5929]
[1745526434551,9.52333214,151.63,151.61,6.5929]
[1745526437952,9.52333214,151.63,151.6,6.5933]
[1745526439050,16.11553214,151.63,151.6,6.5933]
[1745526443653,16.11553214,151.63,151.61,6.593]
[1745526443853,16.11553214,151.63,151.59,23.56]
[1745526444253,16.11553214,151.63,151.6,6.5931]
[1745526444655,16.11553214,151.63,151.59,23.56]
[1745526445553,16.11553214,151.63,151.6,6.5934]
[1745526445954,6.5927,151.62,151.6,6.5934]
[1745526446253,9.52333214,151.63,151.6,6.5934]
[1745526447155,16.11593214,151.63,151.6,6.5934]
[1745526447858,9.52333214,151.61,151.59,23.56]
[1745526448458,16.11663214,151.61,151.59,23.56]
[1745526449558,9.52333214,151.61,151.59,30.1539]
[1745526451461,9.52333214,151.61,151.59,23.56]
[1745526453966,16.11643214,151.61,151.59,23.56]
[1745526456863,9.52333214,151.61,151.59,23.56]
[1745526457265,9.52333214,151.61,151.59,30.1539]
[1745526459269,16.11643214,151.61,151.59,23.56]
[1745526462272,9.52333214,151.61,151.59,23.56]
[1745526462573,9.52333214,151.63,151.59,33.08333214]
[1745526462870,9.52333214,151.64,151.59,33.08333214]
[1745526463065,9.52333214,151.64,151.61,6.5928]
[1745526463772,16.11533214,151.64,151.6,6.5933]
[1745526464370,16.11533214,151.64,151.61,6.593]
[1745526465472,16.11533214,151.64,151.6,6.5933]
[1745526465772,16.11533214,151.64,151.59,33.08333214]
[1745526466673,16.11533214,151.64,151.6,6.5932]
[1745526467673,16.11533214,151.64,151.61,6.593]
[1745526468170,16.11533214,151.64,151.6,6.5933]
[1745526470575,6.5922,151.63,151.6,6.5933]
[1745526472479,6.5928,151.62,151.59,39.67713214]
[1745526472778,6.5928,151.62,151.59,33.08333214]
[1745526473472,6.5931,151.61,151.59,23.56]
[1745526474173,6.5935,151.6,151.59,23.56]
[1745526474878,6.5933,151.61,151.59,23.56]
[1745526475878,16.11603214,151.62,151.59,23.56]
[1745526476078,9.52333214,151.64,151.59,33.08333214]
[1745526476578,9.52333214,151.64,151.6,6.5933]
[1745526476579,16.11523214,151.64,151.6,6.5933]
[1745526477081,16.11523214,151.64,151.59,33.08333214]
[1745526477379,16.11523214,151.64,151.6,6.5933]
[1745526477581,6.5922,151.63,151.6,6.5933]
[1745526481083,9.52333214,151.62,151.59,23.56]
[1745526482382,6.5931,151.61,151.59,23.56]
[1745526485591,6.5935,151.6,151.59,23.56]
[1745526486091,6.5933,151.61,151.59,23.56]
[1745526486292,9.52333214,151.62,151.59,23.56]
[1745526486592,16.11613214,151.62,151.59,23.56]
[1745526486793,16.11613214,151.62,151.59,30.1538]
[1745526486993,16.11613214,151.62,151.59,6.5938]
[1745526487191,9.52333214,151.62,151.58,23.54]
[1745526488093,9.52333214,151.62,151.6,6.5933]
[1745526489894,9.52333214,151.62,151.61,6.5931]
[1745526490094,9.52333214,151.64,151.59,9.52333214]
[1745526490594,9.52333214,151.64,151.62,6.5925]
[1745526491496,9.52333214,151.64,151.59,9.52333214]
[1745526491497,9.52333214,151.64,151.63,6.5922]
[1745526491696,9.52333214,151.64,151.59,9.52333214]
[1745526491891,9.52333214,151.64,151.6,15.93288443]
[1745526492090,9.52333214,151.66,151.65,6.5913]
[1745526492288,9.52333214,151.67,151.65,6.5913]
[1745526492690,3.8266,151.7,151.66,12.99521334]
[1745526492895,9.52333214,151.68,151.66,6.5908]
[1745526493501,9.52333214,151.69,151.67,6.5904]
[1745526494194,9.52333214,151.69,151.67,23.54]
[1745526495898,9.52333214,151.68,151.63,23.54]
[1745526496198,9.52333214,151.66,151.64,6.39529753]
[1745526496388,9.52333214,151.65,151.63,23.54]
[1745526496592,9.52333214,151.65,151.64,6.39415321]
[1745526497399,16.11463214,151.65,151.64,6.39415321]
[1745526498201,9.52333214,151.65,151.64,6.39415321]
[1745526499701,16.11463214,151.65,151.64,6.39299037]
[1745526499891,16.11463214,151.65,151.63,23.54]
[1745526500297,9.52333214,151.65,151.63,23.54]
[1745526500698,6.5917,151.64,151.63,23.54]
[1745526505106,6.5917,151.64,151.6,23.54]
[1745526505107,6.5924,151.63,151.6,23.54]
[1745526505307,9.52333214,151.62,151.61,6.39638379]
[1745526506806,9.52333214,151.63,151.61,6.39638379]
[1745526507105,9.52333214,151.63,151.6,30.1332]
[1745526507307,9.52333214,151.63,151.61,6.39711799]
[1745526507605,9.52333214,151.63,151.6,30.1332]
[1745526507906,9.52333214,151.63,151.61,6.39749081]
[1745526508106,9.52333214,151.63,151.62,6.39749081]
[1745526508503,16.11473214,151.65,151.62,6.39749081]
[1745526508803,16.11473214,151.65,151.6,33.06333214]
[1745526508999,9.52333214,151.65,151.61,15.91992899]
[1745526509204,9.52333214,151.65,151.62,12.98889685]
[1745526509399,9.52333214,151.65,151.63,6.39659685]
[1745526509600,9.52333214,151.65,151.62,6.5923]
[1745526509806,16.11493214,151.65,151.63,6.39454929]
[1745526510008,9.52333214,151.65,151.61,6.5929]
[1745526510211,9.52333214,151.65,151.62,6.39430675]
[1745526510506,9.52333214,151.65,151.63,6.39430675]
[1745526510706,9.52333214,151.65,151.61,6.5929]
[1745526510907,9.52333214,151.65,151.62,6.39429476]
[1745526511104,9.52333214,151.65,151.63,6.39429476]
[1745526511306,6.5917,151.64,151.61,6.5929]
[1745526511505,6.5917,151.64,151.62,6.39454892]
[1745526511706,6.5917,151.64,151.61,6.5929]
[1745526511908,6.5917,151.64,151.62,6.39467238]
[1745526512208,16.11503214,151.64,151.61,6.5929]
[1745526512408,16.11503214,151.64,151.62,6.39465549]
[1745526512609,16.11503214,151.64,151.61,6.5929]
[1745526512910,9.52333214,151.64,151.62,6.39449536]
[1745526513108,9.52333214,151.64,151.61,6.5929]
[1745526513408,9.52333214,151.64,151.62,6.39451061]
[1745526513609,9.52333214,151.64,151.61,6.5929]
[1745526513809,16.11513214,151.64,151.62,6.39448701]
[1745526514010,16.11513214,151.64,151.61,6.5929]
[1745526514208,16.11513214,151.64,151.62,6.39432504]
[1745526514405,16.11513214,151.64,151.61,6.5929]
[1745526514612,16.11513214,151.64,151.62,6.39460597]
[1745526514812,16.11513214,151.64,151.61,6.5929]
[1745526515112,16.11513214,151.64,151.62,6.39456719]
[1745526515313,16.11513214,151.64,151.61,6.5929]
[1745526515514,16.11513214,151.64,151.62,6.39436954]
[1745526515813,16.11513214,151.64,151.61,6.5929]
[1745526516014,16.11513214,151.64,151.62,6.39593754]
[1745526516312,16.11513214,151.64,151.61,6.5929]
[1745526516511,16.11513214,151.64,151.62,6.39609356]
[1745526516713,6.5922,151.63,151.6,30.1333]
[1745526516914,6.5922,151.63,151.61,6.39689182]
[1745526517115,6.5922,151.63,151.62,6.39689182]
[1745526517914,16.11533214,151.64,151.62,6.39689182]
[1745526518114,16.11533214,151.64,151.61,6.593]
[1745526518412,16.11533214,151.64,151.62,6.3968921]
[1745526518613,16.11533214,151.64,151.61,6.593]
[1745526518813,16.11533214,151.64,151.62,6.39745971]